[Event "*** Titled Tuesday Blitz"]
[Site "Chess.com"]
[Date "2019.09.03"]
[Round "6"]
[White "bubacik"]
[Black "VladDobrov"]
[Result "1-0"]
[WhiteElo "2733"]
[BlackElo "2874"]
[TimeControl "180+2"]
[EndTime "16:20:17 PDT"]
[Termination "bubacik won by resignation"]

1. d4 {[%clk 0:02:49.7]} 1... Nf6 {[%clk 0:03:00.9]} 2. c4 {[%clk 0:02:50.4]}
2... e6 {[%clk 0:03:02.5]} 3. Nf3 {[%clk 0:02:51.1]} 3... c5 {[%clk 0:03:03.7]}
4. d5 {[%clk 0:02:51.8]} 4... exd5 {[%clk 0:03:05.3]} 5. cxd5 {[%clk 0:02:52.8]}
5... Bd6 {[%clk 0:03:06.9]} 6. Nc3 {[%clk 0:02:45.6]} 6... Bc7 {[%clk
0:03:08.3]} 7. e4 {[%clk 0:02:45.7]} 7... d6 {[%clk 0:03:10.2]} 8. Bd3 {[%clk
0:02:35.4]} 8... O-O {[%clk 0:03:11.2]} 9. h3 {[%clk 0:02:35.4]} 9... a6 {[%clk
0:03:12.4]} 10. a4 {[%clk 0:02:34.8]} 10... Re8 {[%clk 0:03:14.3]} 11. O-O
{[%clk 0:02:35.4]} 11... Nbd7 {[%clk 0:03:16.2]} 12. Bf4 {[%clk 0:01:59.9]}
12... Rb8 {[%clk 0:03:16.8]} 13. Re1 {[%clk 0:02:00]} 13... Qe7 {[%clk
0:02:30.2]} 14. Bh2 {[%clk 0:01:51.2]} 14... Qf8 {[%clk 0:02:29.6]} 15. Qc2
{[%clk 0:01:48.3]} 15... g6 {[%clk 0:02:16.1]} 16. Rab1 {[%clk 0:01:36.1]} 16...
Ne5 {[%clk 0:02:13.3]} 17. Nxe5 {[%clk 0:01:34.8]} 17... dxe5 {[%clk 0:02:15.2]}
18. Rec1 {[%clk 0:01:18.6]} 18... Bd6 {[%clk 0:02:16.2]} 19. a5 {[%clk
0:01:16.8]} 19... Bd7 {[%clk 0:02:15.1]} 20. Nd1 {[%clk 0:01:14.7]} 20... Nh5
{[%clk 0:02:15.8]} 21. Ne3 {[%clk 0:01:14.7]} 21... Nf4 {[%clk 0:02:05]} 22. Bf1
{[%clk 0:01:15.2]} 22... Bb5 {[%clk 0:01:54.8]} 23. Qb3 {[%clk 0:01:02.4]} 23...
b6 {[%clk 0:01:33.3]} 24. axb6 {[%clk 0:00:56.4]} 24... Rxb6 {[%clk 0:01:35.2]}
25. Nc4 {[%clk 0:00:56.6]} 25... Rbb8 {[%clk 0:01:34.5]} 26. Qf3 {[%clk
0:00:46.6]} 26... Bxc4 {[%clk 0:01:30.5]} 27. Bxc4 {[%clk 0:00:48.5]} 27... Rb6
{[%clk 0:01:30.7]} 28. b3 {[%clk 0:00:47.1]} 28... Qe7 {[%clk 0:01:28.9]} 29.
Ra1 {[%clk 0:00:48.1]} 29... Qb7 {[%clk 0:01:29.9]} 30. Ra5 {[%clk 0:00:38.8]}
30... Ra8 {[%clk 0:01:21]} 31. Rca1 {[%clk 0:00:39.7]} 31... Kg7 {[%clk
0:01:20.6]} 32. Qc3 {[%clk 0:00:37.6]} 32... f6 {[%clk 0:01:20.9]} 33. Kf1
{[%clk 0:00:31]} 33... h5 {[%clk 0:01:21.8]} 34. h4 {[%clk 0:00:29.1]} 34... g5
{[%clk 0:01:21.2]} 35. hxg5 {[%clk 0:00:23.6]} 35... fxg5 {[%clk 0:01:23.1]} 36.
Bxf4 {[%clk 0:00:25.2]} 36... gxf4 {[%clk 0:01:23.6]} 37. Qd3 {[%clk 0:00:26.5]}
37... Rb4 {[%clk 0:01:08.7]} 38. Ke2 {[%clk 0:00:24.6]} 38... Bc7 {[%clk
0:00:59.6]} 39. Rxa6 {[%clk 0:00:20]} 39... Rxa6 {[%clk 0:01:00.4]} 40. Rxa6
{[%clk 0:00:21.9]} 40... Rb6 {[%clk 0:00:55.9]} 41. Rxb6 {[%clk 0:00:23]} 41...
Qxb6 {[%clk 0:00:57.2]} 42. Qh3 {[%clk 0:00:24.9]} 42... Kh6 {[%clk 0:00:51.6]}
43. Qd7 {[%clk 0:00:24.8]} 43... Bd6 {[%clk 0:00:50.8]} 44. Qe6+ {[%clk
0:00:24.1]} 44... Kg5 {[%clk 0:00:51.7]} 45. Qf5+ {[%clk 0:00:24.8]} 45... Kh6
{[%clk 0:00:53.2]} 46. Qf6+ {[%clk 0:00:25.5]} 46... Kh7 {[%clk 0:00:54.7]} 47.
Qf7+ {[%clk 0:00:20.7]} 47... Kh6 {[%clk 0:00:55.7]} 48. Qf6+ {[%clk 0:00:21.5]}
48... Kh7 {[%clk 0:00:56.7]} 49. Qf7+ {[%clk 0:00:21.5]} 49... Kh6 {[%clk
0:00:57.8]} 50. Qd7 {[%clk 0:00:23.4]} 50... Kg5 {[%clk 0:00:57.2]} 51. Qg7+
{[%clk 0:00:23.6]} 51... Kh4 {[%clk 0:00:55.9]} 52. Qf6+ {[%clk 0:00:24.5]}
52... Kg4 {[%clk 0:00:56.2]} 53. Kf1 {[%clk 0:00:26]} 53... Qa5 {[%clk
0:00:49.3]} 54. Be2+ {[%clk 0:00:26.4]} 1-0

[Event "*** Titled Tuesday Blitz"]
[Site "Chess.com"]
[Date "2019.09.03"]
[Round "6"]
[White "Faustregel"]
[Black "babero_gordo"]
[Result "1-0"]
[WhiteElo "2507"]
[BlackElo "2182"]
[TimeControl "180+2"]
[EndTime "16:20:25 PDT"]
[Termination "Faustregel won by resignation"]

1. e4 {[%clk 0:03:01.9]} 1... c5 {[%clk 0:03:00.6]} 2. Nf3 {[%clk 0:03:02.7]}
2... Nc6 {[%clk 0:03:01.8]} 3. d4 {[%clk 0:03:04.1]} 3... cxd4 {[%clk
0:03:03.2]} 4. Nxd4 {[%clk 0:03:06]} 4... g6 {[%clk 0:03:04.6]} 5. Nc3 {[%clk
0:03:04]} 5... Bg7 {[%clk 0:03:05]} 6. Be3 {[%clk 0:03:05.5]} 6... Nf6 {[%clk
0:03:05.8]} 7. Bc4 {[%clk 0:03:06.4]} 7... O-O {[%clk 0:03:05.8]} 8. Bb3 {[%clk
0:03:07.6]} 8... Re8 {[%clk 0:03:06.6]} 9. O-O {[%clk 0:03:01.8]} 9... e6 {[%clk
0:03:05.6]} 10. a4 {[%clk 0:01:58.8]} 10... d5 {[%clk 0:02:59.7]} 11. exd5
{[%clk 0:01:58.2]} 11... exd5 {[%clk 0:02:52.6]} 12. Bg5 {[%clk 0:01:59]} 12...
Nxd4 {[%clk 0:02:36.8]} 13. Qxd4 {[%clk 0:01:58.4]} 13... Ne4 {[%clk 0:02:37]}
14. Qxg7+ {[%clk 0:01:37.3]} 14... Kxg7 {[%clk 0:02:36.3]} 15. Bxd8 {[%clk
0:01:37.9]} 15... Nxc3 {[%clk 0:02:37]} 16. Ba5 {[%clk 0:01:28.9]} 16... Ne2+
{[%clk 0:02:33.8]} 17. Kh1 {[%clk 0:01:30.2]} 17... Be6 {[%clk 0:02:18.1]} 18.
Rfe1 {[%clk 0:01:27.6]} 18... Nf4 {[%clk 0:02:13.8]} 19. g3 {[%clk 0:01:22.5]}
19... Nh3 {[%clk 0:02:11.6]} 20. Bc3+ {[%clk 0:01:14]} 20... Kg8 {[%clk
0:02:06.3]} 21. Bd4 {[%clk 0:01:14.9]} 21... Ng5 {[%clk 0:02:03]} 22. Re3 {[%clk
0:00:56.9]} 22... Ne4 {[%clk 0:02:01.8]} 23. f3 {[%clk 0:00:52.4]} 23... Nd2
{[%clk 0:01:56.2]} 24. Ba2 {[%clk 0:00:52.1]} 24... Nc4 {[%clk 0:01:54]} 25. Re2
{[%clk 0:00:48.8]} 25... Rac8 {[%clk 0:01:44.7]} 26. c3 {[%clk 0:00:47.3]} 26...
b6 {[%clk 0:01:44.9]} 27. b3 {[%clk 0:00:46.7]} 27... Nd6 {[%clk 0:01:43.7]} 28.
Rae1 {[%clk 0:00:47]} 28... Nf5 {[%clk 0:01:42.2]} 29. Bf6 {[%clk 0:00:47.3]}
29... h5 {[%clk 0:01:39.2]} 30. Bb1 {[%clk 0:00:46.8]} 30... Nd6 {[%clk
0:01:20.5]} 31. Be5 {[%clk 0:00:41.2]} 31... Rc6 {[%clk 0:01:17.3]} 32. Bd3
{[%clk 0:00:40.8]} 32... Rec8 {[%clk 0:01:10.2]} 33. Kg2 {[%clk 0:00:37.3]}
33... Kf8 {[%clk 0:01:09.9]} 34. h3 {[%clk 0:00:31.5]} 34... Ke7 {[%clk
0:00:57.3]} 35. g4 {[%clk 0:00:32.1]} 35... hxg4 {[%clk 0:00:57.2]} 36. hxg4
{[%clk 0:00:33.1]} 36... R6c7 {[%clk 0:00:43.5]} 37. Kg3 {[%clk 0:00:27.2]}
37... Rd7 {[%clk 0:00:44.6]} 38. Rh1 {[%clk 0:00:24.4]} 38... Nb7 {[%clk
0:00:39.9]} 39. Bb5 {[%clk 0:00:22.1]} 39... Rdd8 {[%clk 0:00:40.7]} 40. Ba6
{[%clk 0:00:22.2]} 40... Rd7 {[%clk 0:00:39.9]} 41. Bd4 {[%clk 0:00:22.8]} 41...
Rcd8 {[%clk 0:00:33.2]} 42. Bb5 {[%clk 0:00:21.3]} 42... Rc7 {[%clk 0:00:32]}
43. Rh7 {[%clk 0:00:20.8]} 43... Nc5 {[%clk 0:00:30.6]} 44. b4 {[%clk
0:00:18.7]} 44... Nb3 {[%clk 0:00:30.2]} 45. Be5 {[%clk 0:00:18.1]} 45... Rcc8
{[%clk 0:00:31]} 46. g5 {[%clk 0:00:18.5]} 46... Kf8 {[%clk 0:00:30.1]} 47. Bf6
{[%clk 0:00:19.1]} 1-0

[Event "*** Titled Tuesday Blitz"]
[Site "Chess.com"]
[Date "2019.09.03"]
[Round "6"]
[White "GadimbayliA"]
[Black "DeviatkinAndrey"]
[Result "1-0"]
[WhiteElo "2872"]
[BlackElo "2691"]
[TimeControl "180+2"]
[EndTime "16:20:42 PDT"]
[Termination "GadimbayliA won on time"]

1. e4 {[%clk 0:03:01.9]} 1... c6 {[%clk 0:03:00.9]} 2. Nf3 {[%clk 0:03:02.6]}
2... d5 {[%clk 0:03:02.2]} 3. exd5 {[%clk 0:03:04.5]} 3... cxd5 {[%clk
0:03:03.5]} 4. Ne5 {[%clk 0:03:06]} 4... Nf6 {[%clk 0:03:04]} 5. d4 {[%clk
0:03:07]} 5... Nc6 {[%clk 0:03:04.7]} 6. c3 {[%clk 0:03:08.2]} 6... g6 {[%clk
0:03:00.3]} 7. Bb5 {[%clk 0:03:09]} 7... Bd7 {[%clk 0:03:00.6]} 8. Nxd7 {[%clk
0:03:10.3]} 8... Qxd7 {[%clk 0:03:01.9]} 9. O-O {[%clk 0:03:11.5]} 9... Bg7
{[%clk 0:03:03.2]} 10. Re1 {[%clk 0:03:12.4]} 10... O-O {[%clk 0:03:03.9]} 11.
Nd2 {[%clk 0:03:13]} 11... a6 {[%clk 0:03:02.9]} 12. Bd3 {[%clk 0:03:14.1]}
12... Rfe8 {[%clk 0:03:00.5]} 13. Nf3 {[%clk 0:03:15.1]} 13... Qc7 {[%clk
0:03:01.9]} 14. g3 {[%clk 0:03:16]} 14... e5 {[%clk 0:02:58.1]} 15. dxe5 {[%clk
0:03:16]} 15... Nxe5 {[%clk 0:02:56.4]} 16. Bf4 {[%clk 0:03:17.5]} 16... Nh5
{[%clk 0:02:48.3]} 17. Bxe5 {[%clk 0:03:00.4]} 17... Bxe5 {[%clk 0:02:49]} 18.
Be2 {[%clk 0:02:39.9]} 18... Nf6 {[%clk 0:02:43.1]} 19. Nxe5 {[%clk 0:02:40.6]}
19... Rxe5 {[%clk 0:02:43.7]} 20. Bf3 {[%clk 0:02:42.2]} 20... Rae8 {[%clk
0:02:43.7]} 21. Qd2 {[%clk 0:02:43.2]} 21... Kg7 {[%clk 0:02:18.8]} 22. Rad1
{[%clk 0:02:41.1]} 22... Rxe1+ {[%clk 0:01:14.9]} 23. Rxe1 {[%clk 0:02:43]}
23... Rxe1+ {[%clk 0:01:14.5]} 24. Qxe1 {[%clk 0:02:44.9]} 24... Qb6 {[%clk
0:01:06.7]} 25. Qd2 {[%clk 0:02:41.8]} 25... Qc5 {[%clk 0:01:07.5]} 26. Qe2
{[%clk 0:02:39.8]} 26... Qb6 {[%clk 0:00:53.4]} 27. Kg2 {[%clk 0:02:40.6]} 27...
a5 {[%clk 0:00:54.4]} 28. Qd2 {[%clk 0:02:25.2]} 28... Qc5 {[%clk 0:00:54.4]}
29. Qd3 {[%clk 0:02:05.4]} 29... b6 {[%clk 0:00:54.3]} 30. a3 {[%clk 0:02:05.9]}
30... Kf8 {[%clk 0:00:52.1]} 31. b4 {[%clk 0:02:04.7]} 31... axb4 {[%clk
0:00:52.7]} 32. axb4 {[%clk 0:01:56.5]} 32... Qd6 {[%clk 0:00:49.9]} 33. Qd4
{[%clk 0:01:55.9]} 33... Ke7 {[%clk 0:00:49.8]} 34. h3 {[%clk 0:01:53.4]} 34...
h5 {[%clk 0:00:40.3]} 35. g4 {[%clk 0:01:36.6]} 35... hxg4 {[%clk 0:00:41]} 36.
hxg4 {[%clk 0:01:38.5]} 36... Qe6 {[%clk 0:00:29.3]} 37. Qf4 {[%clk 0:01:39.4]}
37... Qd6 {[%clk 0:00:25.2]} 38. Qd4 {[%clk 0:01:19.6]} 38... Qe6 {[%clk
0:00:24.8]} 39. g5 {[%clk 0:01:20.7]} 39... Ne4 {[%clk 0:00:25.8]} 40. Bxe4
{[%clk 0:01:22]} 40... dxe4 {[%clk 0:00:15.3]} 41. c4 {[%clk 0:01:19.8]} 41...
Qg4+ {[%clk 0:00:15.4]} 42. Kf1 {[%clk 0:01:21.1]} 42... Qxg5 {[%clk 0:00:12.3]}
43. Qxe4+ {[%clk 0:01:22.4]} 43... Kf8 {[%clk 0:00:12.7]} 44. Qd4 {[%clk
0:01:20.6]} 44... Qc1+ {[%clk 0:00:12.6]} 45. Kg2 {[%clk 0:01:19.7]} 45... Qg5+
{[%clk 0:00:06.1]} 46. Kf3 {[%clk 0:01:20.8]} 46... Qf5+ {[%clk 0:00:07.1]} 47.
Ke3 {[%clk 0:01:17.7]} 47... Qe6+ {[%clk 0:00:08.3]} 48. Kd2 {[%clk 0:01:17.8]}
48... f6 {[%clk 0:00:04.2]} 49. Kc3 {[%clk 0:01:10.7]} 49... Ke7 {[%clk
0:00:05]} 50. Kb3 {[%clk 0:01:03.5]} 50... g5 {[%clk 0:00:02.5]} 51. Ka3 {[%clk
0:01:04.6]} 51... f5 {[%clk 0:00:02.6]} 52. c5 {[%clk 0:00:54.5]} 52... bxc5
{[%clk 0:00:03.3]} 53. Qxc5+ {[%clk 0:00:51.3]} 53... Kd7 {[%clk 0:00:03.7]} 54.
b5 {[%clk 0:00:52.7]} 1-0

[Event "*** Titled Tuesday Blitz"]
[Site "Chess.com"]
[Date "2019.09.03"]
[Round "6"]
[White "przemekpiotrowski"]
[Black "grzechu96"]
[Result "0-1"]
[WhiteElo "2391"]
[BlackElo "2600"]
[TimeControl "180+2"]
[EndTime "16:20:42 PDT"]
[Termination "grzechu96 won by resignation"]

1. d4 {[%clk 0:03:00.2]} 1... d5 {[%clk 0:02:59]} 2. Nf3 {[%clk 0:03:00.7]} 2...
c6 {[%clk 0:02:57.2]} 3. g3 {[%clk 0:03:01.1]} 3... Nf6 {[%clk 0:02:48.7]} 4.
Bg2 {[%clk 0:03:01.6]} 4... Bf5 {[%clk 0:02:48.5]} 5. O-O {[%clk 0:03:02.3]}
5... e6 {[%clk 0:02:49.9]} 6. c4 {[%clk 0:03:03.7]} 6... Nbd7 {[%clk 0:02:49]}
7. b3 {[%clk 0:03:02.3]} 7... Be7 {[%clk 0:02:49.1]} 8. Nc3 {[%clk 0:03:02.9]}
8... O-O {[%clk 0:02:41.6]} 9. Bb2 {[%clk 0:03:04]} 9... Qa5 {[%clk 0:02:42.7]}
10. a3 {[%clk 0:03:00.3]} 10... h6 {[%clk 0:02:40.7]} 11. Ne5 {[%clk 0:02:44.9]}
11... Rad8 {[%clk 0:02:29.7]} 12. f4 {[%clk 0:02:42.5]} 12... c5 {[%clk
0:02:04.3]} 13. b4 {[%clk 0:01:55.1]} 13... cxb4 {[%clk 0:00:25.9]} 14. axb4
{[%clk 0:01:57]} 14... Qxb4 {[%clk 0:00:27.3]} 15. Ba3 {[%clk 0:01:57.2]} 15...
Qxc3 {[%clk 0:00:28.8]} 16. Bxe7 {[%clk 0:01:57.4]} 16... Nxe5 {[%clk
0:00:30.4]} 17. dxe5 {[%clk 0:01:40.1]} 17... Ng4 {[%clk 0:00:29.7]} 18. Bxf8
{[%clk 0:01:18.9]} 18... Rxf8 {[%clk 0:00:21.6]} 19. cxd5 {[%clk 0:01:02.1]}
19... exd5 {[%clk 0:00:16]} 20. Qe1 {[%clk 0:00:49]} 20... Qc5+ {[%clk
0:00:14.4]} 21. Kh1 {[%clk 0:00:47]} 21... Ne3 {[%clk 0:00:15]} 22. Rf3 {[%clk
0:00:43.4]} 22... Nxg2 {[%clk 0:00:15.6]} 23. Kxg2 {[%clk 0:00:40]} 23... Be4
{[%clk 0:00:17.1]} 24. Ra5 {[%clk 0:00:37.9]} 24... Qb6 {[%clk 0:00:18]} 25. Qa1
{[%clk 0:00:33.7]} 25... a6 {[%clk 0:00:16.6]} 26. Kh3 {[%clk 0:00:32.7]} 26...
Bxf3 {[%clk 0:00:17.7]} 27. exf3 {[%clk 0:00:34.6]} 27... Rd8 {[%clk 0:00:18.9]}
28. Qa2 {[%clk 0:00:34]} 28... d4 {[%clk 0:00:19.1]} 29. g4 {[%clk 0:00:30.9]}
29... Qc6 {[%clk 0:00:11.1]} 30. Kg3 {[%clk 0:00:23]} 30... d3 {[%clk
0:00:12.6]} 31. Qd2 {[%clk 0:00:17.5]} 31... b5 {[%clk 0:00:10.7]} 32. Ra2
{[%clk 0:00:17.7]} 32... Rd4 {[%clk 0:00:05.4]} 33. h4 {[%clk 0:00:18.1]} 33...
b4 {[%clk 0:00:06.7]} 34. g5 {[%clk 0:00:17.3]} 34... hxg5 {[%clk 0:00:07.6]}
35. hxg5 {[%clk 0:00:18]} 35... Qc3 {[%clk 0:00:09]} 36. Qh2 {[%clk 0:00:16.5]}
36... Qc4 {[%clk 0:00:08.2]} 37. Qh4 {[%clk 0:00:15]} 37... d2 {[%clk
0:00:08.9]} 38. g6 {[%clk 0:00:12.7]} 38... fxg6 {[%clk 0:00:09.5]} 39. Ra1
{[%clk 0:00:09.7]} 39... d1=Q {[%clk 0:00:10.1]} 40. Rxd1 {[%clk 0:00:10.7]}
40... Rxd1 {[%clk 0:00:12]} 41. Qe7 {[%clk 0:00:11.9]} 41... Qc3 {[%clk
0:00:10.3]} 42. Qd8+ {[%clk 0:00:07.8]} 42... Rxd8 {[%clk 0:00:08.8]} 0-1

[Event "*** Titled Tuesday Blitz"]
[Site "Chess.com"]
[Date "2019.09.03"]
[Round "6"]
[White "popov_m"]
[Black "Alohamora11"]
[Result "1/2-1/2"]
[WhiteElo "2605"]
[BlackElo "2470"]
[TimeControl "180+2"]
[EndTime "16:20:53 PDT"]
[Termination "Game drawn by repetition"]

1. e4 {[%clk 0:03:01.9]} 1... c5 {[%clk 0:02:45.3]} 2. Nf3 {[%clk 0:03:00.2]}
2... g6 {[%clk 0:02:45.1]} 3. c4 {[%clk 0:02:58.4]} 3... Nc6 {[%clk 0:02:45.5]}
4. d4 {[%clk 0:02:59.3]} 4... cxd4 {[%clk 0:02:47.4]} 5. Nxd4 {[%clk 0:03:01.2]}
5... Nf6 {[%clk 0:02:48.1]} 6. Nc3 {[%clk 0:03:01.9]} 6... d6 {[%clk 0:02:49.3]}
7. Be2 {[%clk 0:03:02.1]} 7... Bg7 {[%clk 0:02:45.2]} 8. Be3 {[%clk 0:03:02.9]}
8... O-O {[%clk 0:02:45.9]} 9. O-O {[%clk 0:03:03.9]} 9... Bd7 {[%clk
0:02:47.3]} 10. f3 {[%clk 0:02:59.9]} 10... Nxd4 {[%clk 0:02:47.7]} 11. Bxd4
{[%clk 0:03:00.6]} 11... a5 {[%clk 0:02:49.6]} 12. Qd2 {[%clk 0:02:52.5]} 12...
Bc6 {[%clk 0:02:50.7]} 13. Rac1 {[%clk 0:02:49.6]} 13... Nd7 {[%clk 0:02:51]}
14. Be3 {[%clk 0:02:42.3]} 14... Nc5 {[%clk 0:02:49.7]} 15. Rfd1 {[%clk
0:02:40.8]} 15... Be5 {[%clk 0:02:50]} 16. b3 {[%clk 0:02:27.1]} 16... e6 {[%clk
0:02:50.6]} 17. g3 {[%clk 0:02:25.1]} 17... f5 {[%clk 0:02:49]} 18. exf5 {[%clk
0:02:04.6]} 18... Rxf5 {[%clk 0:02:39.9]} 19. f4 {[%clk 0:02:05.1]} 19... Bxc3
{[%clk 0:02:03.3]} 20. Qxc3 {[%clk 0:02:04.2]} 20... Ne4 {[%clk 0:02:01.8]} 21.
Qc2 {[%clk 0:01:57.5]} 21... Qe7 {[%clk 0:01:47.7]} 22. Bg4 {[%clk 0:01:45.9]}
22... Rf7 {[%clk 0:01:41.7]} 23. Re1 {[%clk 0:01:47]} 23... h5 {[%clk 0:01:30]}
24. Bf3 {[%clk 0:01:43.3]} 24... d5 {[%clk 0:01:30.9]} 25. Bd4 {[%clk
0:01:38.4]} 25... h4 {[%clk 0:01:22.9]} 26. Kg2 {[%clk 0:01:36]} 26... g5 {[%clk
0:01:15.4]} 27. Be5 {[%clk 0:00:49.6]} 27... Raf8 {[%clk 0:01:08.2]} 28. Rxe4
{[%clk 0:00:43.9]} 28... dxe4 {[%clk 0:01:08.1]} 29. Bxe4 {[%clk 0:00:45.8]}
29... gxf4 {[%clk 0:00:37.5]} 30. Bxc6 {[%clk 0:00:43.8]} 30... Rf5 {[%clk
0:00:37.7]} 31. gxf4 {[%clk 0:00:22.8]} 31... bxc6 {[%clk 0:00:38.3]} 32. Kh3
{[%clk 0:00:19.6]} 32... Qf7 {[%clk 0:00:20.5]} 33. Rg1+ {[%clk 0:00:18.8]}
33... Kh7 {[%clk 0:00:21]} 34. Rg7+ {[%clk 0:00:09.9]} 34... Qxg7 {[%clk
0:00:21.4]} 35. Bxg7 {[%clk 0:00:11.8]} 35... Kxg7 {[%clk 0:00:23.3]} 36. Qc3+
{[%clk 0:00:13]} 36... Kg6 {[%clk 0:00:20.4]} 37. Qd3 {[%clk 0:00:13.6]} 37...
Kh5 {[%clk 0:00:18.6]} 38. Qf3+ {[%clk 0:00:14.1]} 38... Kh6 {[%clk 0:00:17.3]}
39. Qxc6 {[%clk 0:00:14.5]} 39... Rxf4 {[%clk 0:00:17.4]} 40. Qxe6+ {[%clk
0:00:15.8]} 40... R8f6 {[%clk 0:00:18.9]} 41. Qe3 {[%clk 0:00:16.5]} 41... Kh5
{[%clk 0:00:19.3]} 42. Qe5+ {[%clk 0:00:16.2]} 42... R6f5 {[%clk 0:00:17.5]} 43.
Qh8+ {[%clk 0:00:16.8]} 43... Kg5 {[%clk 0:00:18.8]} 44. Qg7+ {[%clk 0:00:18]}
44... Kh5 {[%clk 0:00:20]} 45. Qh7+ {[%clk 0:00:19.4]} 45... Kg5 {[%clk
0:00:21.4]} 46. Qg8+ {[%clk 0:00:17.5]} 46... Kh5 {[%clk 0:00:22.3]} 47. Qe8+
{[%clk 0:00:18.8]} 47... Kg5 {[%clk 0:00:23.4]} 48. Qe3 {[%clk 0:00:17.7]} 48...
Kh5 {[%clk 0:00:23.3]} 49. Qe8+ {[%clk 0:00:14]} 49... Kg5 {[%clk 0:00:23.7]}
50. Qd8+ {[%clk 0:00:10.4]} 50... Kh5 {[%clk 0:00:24.4]} 51. Qe8+ {[%clk
0:00:06]} 1/2-1/2

[Event "*** Titled Tuesday Blitz"]
[Site "Chess.com"]
[Date "2019.09.03"]
[Round "6"]
[White "Caisachess"]
[Black "Snegokhod"]
[Result "0-1"]
[WhiteElo "2291"]
[BlackElo "2572"]
[TimeControl "180+2"]
[EndTime "16:20:58 PDT"]
[Termination "Snegokhod won on time"]

1. e4 {[%clk 0:03:01.9]} 1... c5 {[%clk 0:03:00.4]} 2. c3 {[%clk 0:03:01.8]}
2... Nf6 {[%clk 0:03:00.9]} 3. e5 {[%clk 0:03:01]} 3... Nd5 {[%clk 0:03:00.8]}
4. d4 {[%clk 0:03:02]} 4... cxd4 {[%clk 0:03:02.7]} 5. Nf3 {[%clk 0:03:02.6]}
5... e6 {[%clk 0:03:03.7]} 6. cxd4 {[%clk 0:03:03.5]} 6... d6 {[%clk 0:03:04.6]}
7. a3 {[%clk 0:03:03.6]} 7... Bd7 {[%clk 0:03:05.3]} 8. Bd3 {[%clk 0:03:04.3]}
8... Bc6 {[%clk 0:03:06]} 9. O-O {[%clk 0:03:03.5]} 9... Nd7 {[%clk 0:03:07]}
10. b4 {[%clk 0:03:04]} 10... a6 {[%clk 0:03:07.9]} 11. Bb2 {[%clk 0:03:04.5]}
11... Rc8 {[%clk 0:03:02]} 12. Nbd2 {[%clk 0:02:56.7]} 12... dxe5 {[%clk
0:02:43.2]} 13. dxe5 {[%clk 0:02:54.8]} 13... Nf4 {[%clk 0:02:40.2]} 14. Be4
{[%clk 0:02:53]} 14... Be7 {[%clk 0:02:36.1]} 15. Bxc6 {[%clk 0:02:43.4]} 15...
Rxc6 {[%clk 0:02:35.9]} 16. Ne4 {[%clk 0:02:39.5]} 16... Nb6 {[%clk 0:02:23.3]}
17. Qxd8+ {[%clk 0:02:31.6]} 17... Kxd8 {[%clk 0:02:23.9]} 18. Rfd1+ {[%clk
0:02:31.5]} 18... Kc8 {[%clk 0:02:16]} 19. Neg5 {[%clk 0:02:19.7]} 19... Bxg5
{[%clk 0:01:40.2]} 20. Nxg5 {[%clk 0:02:19.6]} 20... Rc7 {[%clk 0:01:39.4]} 21.
g3 {[%clk 0:01:57]} 21... h6 {[%clk 0:01:11.6]} 22. Ne4 {[%clk 0:01:44.2]} 22...
Nfd5 {[%clk 0:01:11]} 23. Nd6+ {[%clk 0:01:43.7]} 23... Kb8 {[%clk 0:01:07.2]}
24. Bd4 {[%clk 0:01:36.8]} 24... Nc8 {[%clk 0:00:41.8]} 25. Bc5 {[%clk
0:01:28.3]} 25... Rd8 {[%clk 0:00:26.7]} 26. Nxc8 {[%clk 0:01:26.4]} 26... Rcxc8
{[%clk 0:00:17]} 27. Bd6+ {[%clk 0:01:25.3]} 27... Ka7 {[%clk 0:00:18.3]} 28.
Rac1 {[%clk 0:01:25.2]} 28... b6 {[%clk 0:00:17.2]} 29. a4 {[%clk 0:01:22.7]}
29... Kb7 {[%clk 0:00:18]} 30. Kg2 {[%clk 0:01:16.4]} 30... Nc3 {[%clk
0:00:12.8]} 31. Rd4 {[%clk 0:01:03.3]} 31... Nd5 {[%clk 0:00:09.7]} 32. Rxc8
{[%clk 0:00:54.5]} 32... Kxc8 {[%clk 0:00:11.6]} 33. Rg4 {[%clk 0:00:55.1]}
33... g6 {[%clk 0:00:11.1]} 34. Rc4+ {[%clk 0:00:52]} 34... Kb7 {[%clk
0:00:11.2]} 35. Kf3 {[%clk 0:00:46.1]} 35... b5 {[%clk 0:00:10.1]} 36. axb5
{[%clk 0:00:45.3]} 36... axb5 {[%clk 0:00:12]} 37. Rc1 {[%clk 0:00:41.1]} 37...
Ra8 {[%clk 0:00:11.8]} 38. g4 {[%clk 0:00:36.2]} 38... Ra3+ {[%clk 0:00:11.1]}
39. Ke4 {[%clk 0:00:32.1]} 39... Ra2 {[%clk 0:00:11.3]} 40. Bc5 {[%clk
0:00:27.5]} 40... Ra3 {[%clk 0:00:08.9]} 41. h4 {[%clk 0:00:17.2]} 41... Nc3+
{[%clk 0:00:08.8]} 42. Kf4 {[%clk 0:00:05.6]} 42... Ne2+ {[%clk 0:00:09]} 0-1